bitfinex-derivatives/quotes_BTCF0:USTF0_20210105
["timestamp","ask_amount","ask_price","bid_price","bid_amount"]
[1609815891560,0.13632608,32379.0,32378.0,0.5074]
[1609815891960,0.10421,32383.0,32378.0,0.5074]
[1609815892159,0.01889006,32389.0,32378.0,0.5074]
[1609815892361,0.58033825,32388.0,32378.0,0.5074]
[1609815892963,0.0188966,32386.0,32378.0,0.5074]
[1609815893563,0.13632608,32379.0,32378.0,0.5074]
[1609815893964,0.24960608,32379.0,32378.0,0.5074]
[1609815902378,0.11328,32379.0,32378.0,0.5074]
[1609815902580,0.5806542,32389.0,32378.0,0.5074]
[1609815903781,0.5806542,32389.0,32388.0,0.69432608]
[1609815903983,0.58093093,32390.0,32388.0,0.13632608]
[1609815904182,0.58093093,32390.0,32389.0,4.9189]
[1609815904985,0.13512,32391.0,32389.0,4.9189]
[1609815905384,0.13632608,32392.0,32389.0,4.9189]
[1609815907487,0.13632608,32392.0,32388.0,0.13632608]
[1609815907686,0.29198608,32392.0,32388.0,0.13632608]
[1609815908287,0.29198608,32392.0,32391.0,4.8702]
[1609815913394,0.29198608,32392.0,32388.0,0.13632608]
[1609815913793,0.29198608,32392.0,32388.0,3.60142608]
[1609815916999,0.29198608,32392.0,32388.0,0.13632608]
[1609815919303,0.29198608,32392.0,32391.0,4.3613]
[1609815920104,0.15566,32392.0,32391.0,4.3613]
[1609815920304,0.01884923,32401.0,32391.0,4.3613]
[1609815921807,0.13632608,32392.0,32391.0,4.3613]
[1609815922206,0.26174608,32392.0,32391.0,4.3613]
[1609815924013,0.26174608,32392.0,32390.0,0.13632608]
[1609815924213,0.26174608,32392.0,32390.0,3.93912608]
[1609815928323,0.26174608,32392.0,32390.0,0.13632608]
[1609815929423,0.26174608,32392.0,32378.0,3.8998]
[1609815929923,0.12542,32392.0,32378.0,3.8998]
[1609815930125,0.11009,32392.0,32378.0,3.8998]
[1609815930426,0.13632608,32379.0,32378.0,4.03612608]
[1609815931128,0.13632608,32379.0,32366.0,0.09816]
[1609815931329,0.13632608,32379.0,32360.0,3.5233]
[1609815931928,0.10902,32381.0,32360.0,3.5233]
[1609815932430,0.10902,32381.0,32370.0,0.13632608]
[1609815933734,0.10902,32381.0,32371.0,5.1264]
[1609815933735,0.01890392,32380.0,32371.0,5.1264]
[1609815934433,0.01890392,32380.0,32376.0,0.13632608]
[1609815935034,0.01890392,32380.0,32357.0,0.1168]
[1609815935237,0.01890392,32380.0,32369.0,4.7969]
[1609815936438,0.58147735,32379.0,32378.0,0.13632608]
[1609815937537,0.67661345,32381.0,32378.0,0.13632608]
[1609815938138,0.67661345,32381.0,32380.0,4.1711]
[1609815939141,0.00159735,32381.0,32380.0,4.1711]
[1609815939339,0.67454582,32389.0,32380.0,4.1711]
[1609815939842,0.11009,32392.0,32378.0,0.13632608]
[1609815940042,0.13632608,32393.0,32386.0,4.4439]
[1609815940243,0.13632608,32393.0,32378.0,0.13632608]
[1609815940443,0.24867608,32393.0,32392.0,0.13632608]
[1609815941946,0.24867608,32393.0,32390.0,4.4528]
[1609815942146,0.24867608,32393.0,32374.0,0.12774]
[1609815942350,0.24867608,32393.0,32389.0,4.3511]
[1609815944448,0.11235,32393.0,32389.0,4.3511]
[1609815944852,0.11235,32393.0,32368.0,0.1771]
[1609815945049,0.11235,32393.0,32387.0,0.13632608]
[1609815945649,0.67472574,32399.0,32387.0,0.13632608]
[1609815945849,0.67472574,32399.0,32374.0,3.6039]
[1609815946049,0.80056574,32399.0,32374.0,3.6039]
[1609815946251,0.6748048,32397.0,32374.0,3.6039]
[1609815946950,0.6748048,32397.0,32381.0,0.13632608]
[1609815947150,0.6748048,32397.0,32374.0,3.6039]
[1609815947455,0.67485489,32392.0,32374.0,3.6039]
[1609815947651,0.80025489,32392.0,32374.0,3.6039]
[1609815948154,0.67490716,32391.0,32374.0,3.6039]
[1609815948756,0.67490716,32391.0,32356.0,0.13858]
[1609815948955,0.67490716,32391.0,32384.0,0.13632608]
[1609815949556,0.67490716,32391.0,32388.0,4.7657]
[1609815950357,0.67479628,32389.0,32388.0,4.7657]
[1609815951058,0.81112236,32389.0,32388.0,4.90202608]
[1609815951761,0.13632608,32389.0,32388.0,4.90202608]
[1609815954771,0.1254,32392.0,32388.0,4.90202608]
[1609815954970,0.13632608,32394.0,32388.0,4.90202608]
[1609815955573,0.67475549,32398.0,32388.0,0.13632608]
[1609815956971,0.67475549,32398.0,32397.0,0.13632608]
[1609815957173,0.80060013,32399.0,32397.0,0.13632608]
[1609815957372,0.80060013,32399.0,32398.0,3.7162]
[1609815957774,0.12584,32399.0,32398.0,3.7162]
[1609815957972,0.67480911,32410.0,32398.0,3.7162]
[1609815958374,0.67479086,32412.0,32398.0,3.7162]
[1609815959074,0.67479086,32412.0,32410.0,0.13632608]
[1609815960076,0.95903379,32416.0,32410.0,0.13632608]
[1609815960277,0.67383379,32416.0,32385.0,0.10272]
[1609815960477,0.77609379,32416.0,32385.0,0.10272]
[1609815960878,0.2899,32415.0,32393.0,4.1655]
[1609815961079,0.2899,32415.0,32404.0,0.13632608]
[1609815961278,0.77609379,32416.0,32410.0,4.7949]
[1609815963080,0.13632608,32411.0,32410.0,4.7949]
[1609815967085,0.13632608,32411.0,32410.0,4.93122608]
[1609815970887,0.13632608,32411.0,32410.0,4.7949]
[1609815971290,0.66270412,32416.0,32410.0,4.7949]
[1609815971689,0.13632608,32411.0,32410.0,4.7949]
[1609815975394,0.13632608,32411.0,32407.0,0.13632608]
[1609815975594,0.13632608,32411.0,32385.0,0.10272]
[1609815975795,3.7988,32415.0,32399.0,0.13632608]
[1609815975996,3.7988,32415.0,32386.0,3.9041]
[1609815977796,3.7988,32415.0,32390.0,0.13632608]
[1609815977997,0.55967669,32407.0,32390.0,0.13632608]
[1609815978196,0.55967669,32407.0,32386.0,3.9041]
[1609815978197,0.69835669,32407.0,32386.0,3.9041]
[1609815978399,3.5325,32396.0,32366.0,3.7943]
[1609815978598,3.63114,32396.0,32366.0,3.7943]
[1609815979000,0.09864,32396.0,32364.0,0.10203]
[1609815979199,0.09864,32396.0,32361.0,2.18069747]
[1609815979398,3.6971,32385.0,32361.0,2.18069747]
[1609815979598,3.83634,32385.0,32361.0,2.18069747]
[1609815979798,3.83634,32385.0,32373.0,0.13632608]
[1609815981401,0.13924,32385.0,32373.0,0.13632608]
[1609815981601,0.13924,32385.0,32368.0,5.1437]
[1609815982003,0.13924,32385.0,32375.0,0.13632608]
[1609815983303,0.87234,32385.0,32356.0,0.15529]
[1609815984104,0.87234,32385.0,32370.0,0.13632608]
[1609815986106,0.13632608,32371.0,32370.0,0.13632608]
[1609815986409,0.26712608,32371.0,32370.0,0.13632608]
[1609815987508,0.26712608,32371.0,32356.0,0.15529]
[1609815987710,0.26712608,32371.0,32355.0,2.18393702]
[1609815988111,0.1308,32371.0,32365.0,0.13632608]
[1609815988510,4.9461,32370.0,32365.0,0.13632608]
[1609815990209,0.13632608,32366.0,32365.0,0.13632608]
[1609815991010,4.9461,32370.0,32351.0,0.12037]
[1609815992112,4.9461,32370.0,32363.0,0.13632608]
[1609815993613,4.9461,32370.0,32351.0,0.12037]
[1609815993813,4.9461,32370.0,32350.0,3.477]
[1609815994212,4.9461,32370.0,32359.0,0.13632608]
[1609815995915,0.1308,32371.0,32359.0,0.13632608]
[1609815996118,4.3567,32384.0,32363.0,0.13632608]
[1609815998216,0.13632608,32364.0,32363.0,0.13632608]
[1609816003123,0.10276,32369.0,32363.0,0.13632608]
[1609816003524,0.13924,32385.0,32363.0,0.13632608]
[1609816003725,4.755,32387.0,32363.0,0.13632608]
[1609816004125,4.755,32387.0,32367.0,0.13632608]
[1609816006128,0.13632608,32368.0,32367.0,0.13632608]
[1609816006827,0.13632608,32368.0,32367.0,0.66472608]
[1609816007028,0.12506,32370.0,32367.0,0.66472608]
[1609816007229,0.12506,32370.0,32367.0,0.13632608]
[1609816007430,0.12506,32370.0,32369.0,4.7982]
[1609816009533,0.13632608,32375.0,32369.0,4.7982]
[1609816010133,0.13632608,32375.0,32374.0,0.13632608]
[1609816010335,0.09864,32396.0,32374.0,0.83982608]
[1609816010534,0.09864,32396.0,32374.0,0.13632608]
[1609816010735,0.09864,32396.0,32382.0,4.0457]
[1609816011036,0.00949335,32400.0,32382.0,4.0457]
[1609816011236,2.23391548,32431.0,32382.0,4.0457]
[1609816011237,0.14816631,32407.0,32382.0,4.0457]
[1609816012038,0.13868,32407.0,32382.0,4.0457]
[1609816012239,0.00948568,32409.0,32391.0,0.74992608]
[1609816012438,0.5216,32408.0,32391.0,0.6136]
[1609816012639,0.12967,32408.0,32367.0,0.1392]
[1609816012840,3.5414,32401.0,32367.0,0.1392]
[1609816013240,0.2763,32400.0,32367.0,0.1392]
[1609816014043,0.2763,32400.0,32366.0,3.8829]
[1609816014242,0.2763,32400.0,32374.0,0.13632608]
[1609816014442,0.2763,32400.0,32366.0,3.8829]
[1609816016147,0.2763,32400.0,32369.0,0.13632608]
[1609816016749,0.00948948,32395.0,32369.0,0.13632608]
[1609816017649,0.00948948,32395.0,32366.0,3.8829]
[1609816018254,0.00948948,32395.0,32371.0,0.13632608]
[1609816020254,0.13632608,32372.0,32371.0,0.13632608]
[1609816020455,0.29739608,32372.0,32371.0,0.13632608]
[1609816026867,0.29739608,32372.0,32371.0,4.21052608]
[1609816028266,0.16107,32372.0,32371.0,4.21052608]
[1609816028466,0.13632608,32376.0,32371.0,4.21052608]
[1609816030369,0.13632608,32376.0,32375.0,0.13632608]
[1609816031673,0.00951452,32393.0,32375.0,0.13632608]
[1609816032074,0.00951452,32393.0,32381.0,5.1811]
[1609816032575,0.00951452,32393.0,32389.0,0.6861]
[1609816032977,0.00951276,32394.0,32389.0,0.6861]
[1609816034479,0.13632608,32390.0,32389.0,0.6861]
[1609816034977,0.25949608,32390.0,32389.0,0.6861]
[1609816035979,0.12317,32390.0,32389.0,0.6861]
[1609816036580,0.12317,32390.0,32389.0,0.82242608]
[1609816039983,0.13632608,32393.0,32389.0,0.82242608]
[1609816049092,0.00952919,32407.0,32389.0,0.82242608]
[1609816049292,0.00952919,32407.0,32389.0,0.13632608]
[1609816049494,0.00952919,32407.0,32406.0,4.3868]
[1609816050696,0.12967,32408.0,32406.0,4.52312608]
[1609816050895,0.13632608,32416.0,32406.0,4.52312608]
[1609816051096,0.13632608,32416.0,32406.0,0.13632608]
[1609816051296,0.00952638,32418.0,32415.0,5.1487]
[1609816051699,0.00952481,32423.0,32415.0,5.1487]
[1609816052799,0.00952481,32423.0,32422.0,0.13632608]
[1609816053200,0.00952481,32423.0,32422.0,0.76142608]
[1609816053401,0.00952481,32423.0,32422.0,0.6251]
[1609816054802,0.14585089,32423.0,32422.0,0.76142608]
[1609816055707,0.13632608,32423.0,32422.0,0.76142608]
[1609816058207,0.23427608,32423.0,32422.0,0.76142608]
[1609816058407,0.09795,32423.0,32422.0,0.76142608]
[1609816059209,0.09795,32423.0,32422.0,0.6251]
[1609816060812,0.09795,32423.0,32422.0,0.76142608]
[1609816063210,0.13632608,32424.0,32422.0,0.76142608]
[1609816063910,0.00942819,32442.0,32422.0,0.6251]
[1609816064513,0.0094283,32441.0,32422.0,0.6251]
[1609816064712,0.1422683,32441.0,32422.0,0.6251]
[1609816064912,0.13632608,32423.0,32422.0,0.76142608]
[1609816065112,0.29148608,32423.0,32422.0,0.76142608]
[1609816071525,0.15516,32423.0,32422.0,0.6251]
[1609816071725,0.13284,32441.0,32422.0,0.6251]
[1609816072024,0.02808083,32443.0,32422.0,0.6251]
[1609816072927,0.02808083,32443.0,32424.0,0.13632608]
[1609816074934,0.13632608,32425.0,32424.0,0.13632608]
[1609816075233,0.29736608,32425.0,32424.0,0.13632608]
[1609816075737,0.29736608,32425.0,32424.0,3.91352608]
[1609816077236,0.16104,32425.0,32424.0,3.91352608]
[1609816077438,0.00941954,32442.0,32424.0,3.91352608]
[1609816077636,0.14276,32425.0,32424.0,0.13632608]
[1609816077837,0.14276,32425.0,32424.0,5.24512608]
[1609816078838,0.1005,32439.0,32424.0,5.24512608]
[1609816079039,0.1005,32439.0,32438.0,0.13632608]
[1609816079239,0.00940601,32455.0,32438.0,0.65562608]
[1609816079642,0.30023062,32466.0,32438.0,0.65562608]
[1609816080240,0.2722,32466.0,32438.0,0.65562608]
[1609816081042,0.2722,32466.0,32452.0,0.13632608]
[1609816081244,0.2722,32466.0,32454.0,3.7485]
[1609816082943,0.2722,32466.0,32456.0,0.13632608]
[1609816083142,0.00939732,32468.0,32456.0,0.13632608]
[1609816083344,0.00939732,32468.0,32454.0,3.7485]
[1609816083543,0.11381732,32468.0,32454.0,3.7485]
[1609816084946,0.13632608,32455.0,32454.0,3.7485]
[1609816085247,0.29304608,32455.0,32454.0,3.7485]
[1609816087350,0.15672,32455.0,32454.0,3.7485]
[1609816090257,0.13632608,32457.0,32454.0,3.7485]
[1609816091055,0.13632608,32457.0,32456.0,0.13632608]
[1609816091456,0.10442,32468.0,32456.0,0.13632608]
[1609816091656,0.2903,32472.0,32456.0,0.13632608]
[1609816091856,0.2903,32472.0,32467.0,3.5824]
[1609816092057,0.57376878,32481.0,32467.0,3.5824]
[1609816092757,0.30778052,32483.0,32467.0,3.5824]
[1609816093258,0.30778052,32483.0,32470.0,0.13632608]
[1609816093658,0.30778052,32483.0,32467.0,3.5824]
[1609816093958,0.42342052,32483.0,32467.0,3.5824]
[1609816095362,0.42342052,32483.0,32473.0,0.13632608]
[1609816095765,0.13432052,32483.0,32482.0,4.2898]
[1609816096967,0.11564,32483.0,32482.0,4.2898]
[1609816097867,0.11564,32483.0,32482.0,0.13632608]
[1609816098269,0.11564,32483.0,32471.0,3.6083]
[1609816099068,0.09725,32483.0,32471.0,3.6083]
[1609816099569,0.09725,32483.0,32453.0,0.09881]
[1609816099768,0.09725,32483.0,32469.0,5.0764]
[1609816099968,0.13632608,32480.0,32479.0,0.13632608]
[1609816103375,0.13632608,32480.0,32472.0,4.4541]
[1609816103976,0.09725,32483.0,32473.0,0.13632608]
[1609816104175,5.15970531,32498.0,32473.0,0.13632608]
[1609816104576,0.02798279,32497.0,32473.0,0.13632608]
[1609816104774,0.14332279,32497.0,32473.0,0.13632608]
[1609816105975,0.14332279,32497.0,32477.0,0.13632608]
[1609816106474,0.14332279,32497.0,32479.0,3.685]
[1609816107977,0.13632608,32480.0,32479.0,3.685]
[1609816108177,0.29408608,32480.0,32479.0,3.685]
[1609816111183,0.29408608,32480.0,32477.0,0.13632608]
[1609816111384,0.29408608,32480.0,32469.0,4.7465]
[1609816111983,0.29408608,32480.0,32454.0,6.2718]
[1609816111984,0.15776,32480.0,32453.0,0.09881]
[1609816112384,0.15776,32480.0,32452.0,4.0579]
[1609816112683,0.15776,32480.0,32462.0,0.13632608]
[1609816113383,4.8886,32489.0,32462.0,0.13632608]
[1609816113786,0.00938761,32488.0,32462.0,0.13632608]
[1609816114185,0.02797877,32487.0,32462.0,0.13632608]
[1609816114584,0.13632608,32464.0,32462.0,0.13632608]
[1609816114784,0.23543608,32464.0,32463.0,5.1582]
[1609816114985,0.09911,32464.0,32463.0,5.1582]
[1609816115785,0.15483,32488.0,32463.0,5.1582]
[1609816116588,0.15483,32488.0,32479.0,0.13632608]
[1609816116789,0.15483,32488.0,32463.0,5.1582]
[1609816118491,0.15483,32488.0,32471.0,0.13632608]
[1609816118691,0.15483,32488.0,32472.0,0.6976]
[1609816119291,0.12473037,32497.0,32472.0,0.6976]
[1609816119793,0.00939905,32495.0,32472.0,0.6976]
[1609816120194,0.00939905,32495.0,32471.0,0.13632608]
[1609816120397,0.00939905,32495.0,32482.0,4.4775]
[1609816120594,0.13632608,32483.0,32482.0,4.4775]
[1609816120794,0.27261608,32483.0,32482.0,4.4775]
[1609816121294,0.13629,32483.0,32482.0,4.4775]
[1609816123297,0.27261608,32483.0,32482.0,4.4775]
[1609816124497,0.27261608,32483.0,32481.0,0.13632608]
[1609816131006,0.27261608,32483.0,32478.0,4.8288]
[1609816131208,0.13632608,32479.0,32478.0,4.8288]
[1609816135319,0.13629,32483.0,32478.0,4.8288]
[1609816135520,0.1435842,32497.0,32478.0,4.8288]
[1609816135720,0.1435842,32497.0,32482.0,0.13632608]
[1609816136923,0.12481667,32497.0,32482.0,0.13632608]
[1609816137523,0.12481667,32497.0,32478.0,4.8288]
[1609816137724,0.11534,32497.0,32478.0,4.8288]
[1609816138024,0.02824386,32498.0,32478.0,4.8288]
[1609816138525,0.0094766,32497.0,32478.0,4.8288]
[1609816138727,0.1402566,32497.0,32460.0,0.11455]
[1609816138925,0.1402566,32497.0,32480.0,0.13632608]
[1609816139126,0.00947664,32495.0,32480.0,0.13632608]
[1609816139726,0.0094907,32494.0,32480.0,0.13632608]
[1609816139925,0.0094907,32494.0,32484.0,3.6472]
[1609816140726,0.13632608,32485.0,32484.0,3.6472]
[1609816140925,0.28866608,32485.0,32484.0,3.6472]
[1609816142727,0.28866608,32485.0,32484.0,3.78352608]
[1609816143430,0.28866608,32485.0,32484.0,0.13632608]
[1609816144331,0.28866608,32485.0,32484.0,0.69022608]
[1609816150842,0.15234,32485.0,32484.0,0.69022608]
[1609816151043,0.00952791,32492.0,32484.0,0.69022608]
[1609816151243,0.00952791,32492.0,32484.0,0.5539]
[1609816152946,0.00952791,32492.0,32491.0,0.13632608]
[1609816153746,0.02839568,32493.0,32491.0,0.13632608]
[1609816154849,0.16472176,32493.0,32491.0,0.13632608]
[1609816155050,0.13632608,32493.0,32492.0,4.9177]
[1609816158956,0.13632608,32493.0,32491.0,0.13632608]
[1609816164664,0.13632608,32493.0,32479.0,3.7344]
[1609816165063,0.57783654,32504.0,32483.0,0.13632608]
[1609816165265,0.57783654,32504.0,32490.0,4.7681]
[1609816165565,0.01879847,32503.0,32490.0,4.7681]
[1609816165765,0.12190847,32503.0,32490.0,4.7681]
[1609816166165,0.68048145,32503.0,32490.0,4.7681]
[1609816166867,0.10311,32503.0,32490.0,4.7681]
[1609816167067,0.13632608,32491.0,32490.0,4.90442608]
[1609816167267,0.25339608,32491.0,32490.0,4.90442608]
[1609816168772,0.25339608,32491.0,32490.0,0.13632608]
[1609816170470,0.25339608,32491.0,32483.0,3.7322]
[1609816171070,0.11707,32491.0,32486.0,0.13632608]
[1609816172270,0.10311,32503.0,32486.0,0.13632608]
[1609816172471,0.57740492,32505.0,32486.0,0.13632608]
[1609816172970,0.57740492,32505.0,32492.0,5.1282]
[1609816174470,0.57740492,32505.0,32486.0,0.13632608]
[1609816174672,0.68736492,32505.0,32486.0,0.13632608]
[1609816175175,0.13632608,32487.0,32486.0,0.13632608]
[1609816175372,0.26787608,32487.0,32486.0,0.13632608]
[1609816190900,0.26787608,32487.0,32486.0,4.70272608]
[1609816191802,0.13155,32487.0,32486.0,4.70272608]
[1609816192001,0.01894915,32495.0,32486.0,4.70272608]
[1609816192703,0.58198325,32496.0,32486.0,4.70272608]
[1609816193202,0.58198325,32496.0,32491.0,0.13632608]
[1609816195306,0.13632608,32492.0,32491.0,0.13632608]
[1609816195507,0.25832608,32492.0,32491.0,0.13632608]
[1609816199014,0.25832608,32492.0,32491.0,0.81912608]
[1609816208028,0.122,32492.0,32491.0,0.6828]
[1609816208229,0.58191878,32500.0,32491.0,0.6828]
[1609816209029,0.58191878,32500.0,32476.0,2.19316251]
[1609816209229,0.58191878,32500.0,32485.0,4.3432]
[1609816209432,0.58191878,32500.0,32495.0,0.13632608]
[1609816211130,0.00956401,32498.0,32495.0,0.13632608]
[1609816211333,0.13632608,32496.0,32481.0,4.9958]
[1609816213333,0.13549401,32498.0,32492.0,0.13632608]
[1609816213734,0.12593,32498.0,32492.0,0.13632608]
[1609816215337,0.13632608,32493.0,32492.0,0.13632608]
[1609816221341,0.13632608,32493.0,32492.0,4.14022608]
[1609816224147,0.13632608,32493.0,32492.0,0.13632608]
[1609816234160,0.13632608,32493.0,32484.0,4.6739]
[1609816235461,0.12593,32498.0,32488.0,0.13632608]
[1609816235960,0.02845903,32500.0,32488.0,0.13632608]
[1609816236261,0.00954878,32500.0,32488.0,0.13632608]
[1609816236961,0.02846075,32500.0,32488.0,0.13632608]
[1609816237561,0.13632608,32489.0,32484.0,0.13632608]
[1609816237860,0.28793608,32489.0,32484.0,0.13632608]
[1609816238460,0.28793608,32489.0,32476.0,3.5224]
[1609816239464,0.15161,32489.0,32477.0,0.13632608]
[1609816240265,0.15161,32489.0,32472.0,3.8018]
[1609816240464,0.15161,32489.0,32466.0,2.17308698]
[1609816240665,4.2847,32486.0,32466.0,2.17308698]
[1609816240875,4.2847,32486.0,32464.0,2.17536316]
[1609816241968,0.13632608,32465.0,32464.0,2.17536316]
[1609816242168,0.10421,32465.0,32464.0,2.17536316]
[1609816242771,0.10421,32465.0,32457.0,2.17645549]
[1609816243971,0.24053608,32465.0,32464.0,0.13632608]
[1609816247173,0.13632608,32465.0,32464.0,0.73092608]
[1609816247373,0.00955874,32483.0,32464.0,0.13632608]
[1609816247575,0.00955874,32483.0,32470.0,4.2379]
[1609816247976,0.58139654,32484.0,32470.0,4.2379]
[1609816247977,0.13632608,32477.0,32470.0,4.2379]
[1609816249578,0.13632608,32477.0,32460.0,0.15141]
[1609816249980,0.00955666,32479.0,32474.0,0.13632608]
[1609816250882,0.00955666,32479.0,32459.0,3.7636]
[1609816251987,0.00955666,32479.0,32474.0,0.13632608]
[1609816252384,0.00955666,32479.0,32463.0,3.7175]
[1609816254391,0.00955666,32479.0,32453.0,2.33693636]
[1609816254789,0.00955666,32479.0,32472.0,0.13632608]
[1609816256691,0.13632608,32473.0,32472.0,0.13632608]
[1609816262503,0.13632608,32473.0,32472.0,5.16632608]
[1609816263904,0.14327,32474.0,32472.0,5.16632608]
[1609816264106,0.12709,32481.0,32472.0,5.16632608]
[1609816264405,0.15161,32489.0,32472.0,5.16632608]
[1609816264809,0.00950842,32491.0,32479.0,0.13632608]
[1609816265907,0.00950842,32491.0,32480.0,0.623]
[1609816266808,0.13632608,32481.0,32480.0,0.623]
[1609816269814,0.14173,32483.0,32480.0,0.623]
[1609816271117,0.13632608,32488.0,32480.0,0.623]
[1609816272824,0.13632608,32488.0,32487.0,0.13632608]
[1609816273322,0.13632608,32488.0,32487.0,3.63792608]
[1609816287742,0.13632608,32488.0,32487.0,0.13632608]
[1609816288344,0.13632608,32488.0,32487.0,4.58372608]
[1609816290346,0.12793,32491.0,32473.0,0.09738]
[1609816290546,0.2965,32498.0,32488.0,3.5488]
[1609816290747,0.2965,32498.0,32473.0,0.13176]
[1609816290947,0.11488,32498.0,32476.0,6.8642]
[1609816291148,0.11488,32498.0,32488.0,3.8746]
[1609816291548,0.11488,32498.0,32497.0,0.7313]
[1609816293051,0.11488,32498.0,32496.0,0.13632608]
[1609816293551,0.13632608,32497.0,32496.0,0.13632608]
[1609816311478,0.13632608,32497.0,32496.0,4.14572608]
[1609816313780,0.11488,32498.0,32496.0,4.14572608]
[1609816313982,0.10996,32505.0,32496.0,4.14572608]
[1609816314179,0.00950835,32511.0,32496.0,4.14572608]
[1609816315083,0.00950835,32511.0,32496.0,0.13632608]
[1609816315582,0.00950835,32511.0,32488.0,0.1299]
[1609816315984,0.00950835,32511.0,32510.0,0.13632608]
[1609816316582,0.00950835,32511.0,32510.0,4.57762608]
[1609816316982,0.00950835,32511.0,32510.0,0.13632608]
[1609816317183,0.70890384,32512.0,32510.0,0.13632608]
[1609816317184,0.1307,32512.0,32510.0,0.13632608]
[1609816319787,0.13632608,32520.0,32519.0,4.2591]
[1609816321588,0.00948779,32528.0,32519.0,4.2591]
[1609816322091,0.00948779,32528.0,32521.0,0.13632608]
[1609816324091,0.13632608,32522.0,32521.0,0.13632608]
[1609816324291,0.27589608,32522.0,32521.0,0.13632608]
[1609816326895,0.27589608,32522.0,32521.0,4.33992608]
[1609816329900,0.27589608,32522.0,32521.0,0.13632608]
[1609816330902,0.13957,32522.0,32511.0,4.3256]
[1609816331300,4.5536,32535.0,32511.0,4.3256]
[1609816331499,0.13276,32522.0,32511.0,4.3256]
[1609816332199,0.13276,32522.0,32518.0,0.13632608]
[1609816332498,0.13276,32522.0,32511.0,4.3256]
[1609816334301,0.13276,32522.0,32515.0,0.13632608]
[1609816336200,0.13632608,32516.0,32515.0,0.13632608]
[1609816342010,0.13632608,32516.0,32515.0,3.87062608]
[1609816342710,0.13568227,32516.0,32515.0,3.87062608]
[1609816344914,0.13568227,32516.0,32515.0,0.13632608]
[1609816345515,0.13568227,32516.0,32509.0,5.1295]
[1609816346217,0.13632608,32510.0,32507.0,0.13632608]
[1609816346818,0.13276,32522.0,32498.0,0.15023]
[1609816347015,4.61,32521.0,32498.0,0.15023]
[1609816347216,4.61,32521.0,32491.0,5.67779444]
[1609816347919,0.13276,32522.0,32491.0,2.12309444]
[1609816348118,4.5911,32516.0,32491.0,2.12309444]
[1609816348318,4.69113,32516.0,32501.0,0.13632608]
[1609816348719,4.69113,32516.0,32496.0,0.15096]
[1609816350321,0.13632608,32497.0,32496.0,0.28728608]
[1609816353224,0.13632608,32497.0,32496.0,0.15096]
[1609816353626,3.67422608,32497.0,32488.0,0.1299]
[1609816353828,3.67422608,32497.0,32480.0,0.15407]
[1609816354027,3.67422608,32497.0,32479.0,2.13618964]
[1609816354227,3.5379,32497.0,32487.0,0.13632608]
[1609816356228,0.13632608,32488.0,32487.0,0.13632608]
[1609816358830,0.10689,32492.0,32487.0,0.13632608]
[1609816359231,0.13525,32499.0,32490.0,4.1143]
[1609816359730,0.13525,32499.0,32490.0,4.22272]
[1609816359930,0.11964,32507.0,32490.0,4.22272]
[1609816360134,0.00949186,32511.0,32490.0,4.22272]
[1609816360330,4.6226,32508.0,32490.0,0.10842]
[1609816360933,4.6226,32508.0,32480.0,4.3552]
[1609816362437,4.6226,32508.0,32484.0,0.13632608]
[1609816364338,0.13632608,32485.0,32484.0,0.13632608]
[1609816375664,0.13632608,32485.0,32480.0,0.1144]
[1609816375861,0.13632608,32485.0,32474.0,4.5618]
[1609816376363,0.13794,32494.0,32479.0,0.13632608]
[1609816376563,3.4645,32496.0,32479.0,0.13632608]
[1609816378367,0.13632608,32480.0,32479.0,0.13632608]
[1609816378866,0.13632608,32480.0,32479.0,0.81582608]
[1609816379768,0.12632608,32480.0,32479.0,0.81582608]
[1609816389286,0.10636,32493.0,32479.0,0.6795]
[1609816389484,3.4645,32496.0,32479.0,0.6795]
[1609816389684,0.2954,32507.0,32473.0,0.13176]
[1609816389884,0.2954,32507.0,32479.0,3.8266]
[1609816390086,0.2954,32507.0,32479.0,3.97535]
[1609816390484,0.2954,32507.0,32495.0,0.13632608]
[1609816392388,0.13632608,32496.0,32495.0,0.13632608]
[1609816393287,0.13632608,32496.0,32479.0,3.97535]
[1609816394389,0.2954,32507.0,32492.0,0.13632608]
[1609816395289,0.2954,32507.0,32479.0,3.97535]
[1609816396392,0.2954,32507.0,32488.0,0.13632608]
[1609816396597,0.5872,32506.0,32488.0,0.13632608]
[1609816398398,0.13632608,32489.0,32483.0,0.13632608]
[1609816399398,0.13632608,32489.0,32479.0,0.14875]
[1609816399798,0.13632608,32489.0,32477.0,4.07]
[1609816400401,4.6018,32497.0,32482.0,0.13632608]
[1609816402202,4.6018,32497.0,32482.0,0.82922608]
[1609816402402,0.13265,32498.0,32483.0,3.4914]
[1609816402602,0.13265,32498.0,32487.0,0.13632608]
[1609816403506,0.2954,32507.0,32487.0,0.13632608]
[1609816404206,4.9042,32500.0,32487.0,0.13632608]
[1609816404406,0.13525,32501.0,32487.0,0.13632608]
[1609816404607,0.13632608,32488.0,32487.0,0.13632608]
[1609816405611,0.13525,32501.0,32487.0,4.32312608]
[1609816406611,0.13525,32501.0,32500.0,0.13632608]
[1609816407310,0.12389,32509.0,32500.0,0.13632608]
[1609816407510,0.00953544,32514.0,32500.0,0.13632608]
[1609816407911,0.02841814,32514.0,32500.0,0.13632608]
[1609816408514,0.13632608,32501.0,32500.0,0.13632608]
[1609816409415,0.11397,32509.0,32491.0,0.15155]
[1609816410516,0.11397,32509.0,32501.0,0.13632608]
[1609816412521,0.13632608,32502.0,32501.0,0.13632608]
[1609816413121,0.28084608,32502.0,32501.0,0.13632608]
[1609816413623,0.28084608,32502.0,32487.0,4.1868]
[1609816413822,0.28084608,32502.0,32484.0,0.16083]
[1609816414223,0.28084608,32502.0,32483.0,5.1068]
[1609816414624,0.14452,32502.0,32494.0,0.13632608]
[1609816416626,0.13632608,32495.0,32494.0,0.13632608]
[1609816418734,0.13632608,32495.0,32483.0,5.1068]
[1609816420232,0.13632608,32495.0,32479.0,2.15511638]
[1609816420433,4.7718,32493.0,32479.0,2.15511638]
[1609816420634,0.13632608,32481.0,32480.0,0.13632608]
[1609816422635,0.13632608,32481.0,32477.0,0.13954]
[1609816422934,0.13632608,32481.0,32470.0,6.51628949]
[1609816423336,0.13632608,32481.0,32470.0,4.3588]
[1609816424538,4.7718,32493.0,32476.0,0.13632608]
[1609816425237,4.7718,32493.0,32476.0,0.86882608]
[1609816425537,0.13071,32494.0,32480.0,3.5873]